{"text_format":"1","workbook":"xlsx","n_sheets":15,"sheets":["Data","Main","Add sheet","Scores","Bars","Rest","Kit","Stw","FO","HK","PC","Lau","Rec","Eng","Sec"],"not_rendered":{"charts":0,"images":0,"macros":1,"external_links":0,"defined_names":11,"comments":0,"pivot_tables":0},"unopened":[],"bounds":{"document_bytes":16777216,"sheet_cells":100000,"rows_first":2000,"rows_last":500,"rows_between":2000,"halvings":0,"cell_chars":16384,"cell_head_chars":4096},"cells_cut":0,"cells_raw":0,"read":"whole","date_system":"1900"}

{"sheet":"Data","index":0,"n_rows":12,"n_cols":2,"rows_kept":12,"cut":false,"hidden":false,"merged":[]}
["Departments "]
["Rest","Intro "]
["Bars","Yes"]
["FO","No"]
["HK"]
["Lau"]
["Rec"]
["Sec"]
["PC"]
["Stew"]
["Kit"]
["Eng"]

{"sheet":"Main","index":1,"n_rows":0,"n_cols":0,"rows_kept":0,"cut":false,"hidden":false,"merged":[]}

{"sheet":"Add sheet","index":2,"n_rows":24,"n_cols":10,"rows_kept":24,"cut":false,"hidden":false,"merged":[]}
[]
[]
[null,"Department","FO"]
[]
[null,"Topic Number",1]
[]
[null,"Topic Name",{"$f":"VLOOKUP(C5,INDIRECT(\"'\"&C3&\"'!A2:c33\"),2,FALSE)","v":"Check IN Procedures"},{"$f":"VLOOKUP(C5,Bars[[NO]:[Date التاريخ ]],2,0)","v":"Preparing Special Beverages Cocktails\n"}]
[]
[null,"Topic Date ",{"$f":"VLOOKUP(C5,INDIRECT(\"'\"&C3&\"'!A2:c33\"),3,FALSE)","v":"01.03.2021"},{"$f":"VLOOKUP(C5,Bars!A2:D17,2,0)","v":"Preparing Special Beverages Cocktails\n"}]
[]
[null,"Video Submission Date","2021-03-11",null,{"$f":"IF((C11-C9)<=1,5,IF((C11-C9)<=2,3,IF((C11-C9)<=5,2,0)))","v":{"$error":"#VALUE!"}}]
[]
[null,"Video Duration ",5,null,{"$f":"IF(C13>=15,5,IF(C13>=10,3,IF(C13>=5,2,0)))","v":2}]
[]
[null,"Inntroduction ","NO",null,{"$f":"IF(C15= \"Yes\",2,0)","v":0}]
[]
[null,"Voice Clarity ","Clear ",null,{"$f":"IF(C17=\"Clear\",2,0)","v":0}]
[]
[null,"Grouped videos","Yes",null,{"$f":"IF(C19= \"Yes\",-1,0)","v":-1}]
[]
[]
[]
[null,"Deparment","Topic Number","Topic Name","Topic Date ","Video Submission Date","Video Duration ","Introduction ","Voice Clarity ","Grouped videos"]
[null,"F&B (Bars)",1,{"$f":"VLOOKUP(C24,INDIRECT(\"'\"&B24&\"'!A3:c33\"),2,FALSE)","v":{"$error":"#REF!"}},{"$f":"VLOOKUP(C24,INDIRECT(\"'\"&B24&\"'!A3:c33\"),3,FALSE)","v":{"$error":"#REF!"}},"2021-03-11",5,"Yes ","Clear ","Yes"]

{"sheet":"Scores","index":3,"n_rows":15,"n_cols":34,"rows_kept":15,"cut":false,"hidden":false,"merged":[]}
[]
[]
[]
["Department ","No. of Videos",1,2,3,4,5,6,7,8,9,10,11,12,13,14,15,16,17,18,19,20,21,22,23,24,25,26,27,28,29,30,"Total","Score %"]
["F&B (Rest)",5,15,10,12,4,12,null,null,null,null,null,null,null,null,null,null,null,null,null,null,null,null,null,null,null,null,null,null,null,null,null,{"$f":"SUM(C5:AF5)","v":53},{"$f":"AG5/(B5*15)","v":0.70666666666666667}]
["F&B (Bars)",5,11,12,8,14,6,null,null,null,null,null,null,null,null,null,null,null,null,null,null,null,null,null,null,null,null,null,null,null,null,null,{"$f":"SUM(C6:AF6)","v":51},{"$f":"AG6/(B6*15)","v":0.68}]
["FO",5,8,10,12,14,11,null,null,null,null,null,null,null,null,null,null,null,null,null,null,null,null,null,null,null,null,null,null,null,null,null,55,0.73333333333333328]
["HK",5,11,10,12,4,12,null,null,null,null,null,null,null,null,null,null,null,null,null,null,null,null,null,null,null,null,null,null,null,null,null,49,0.65333333333333332]
["Lau",5,15,15,12,10,10,null,null,null,null,null,null,null,null,null,null,null,null,null,null,null,null,null,null,null,null,null,null,null,null,null,62,0.82666666666666666]
["Rec",5,14,14,12,10,15,null,null,null,null,null,null,null,null,null,null,null,null,null,null,null,null,null,null,null,null,null,null,null,null,null,65,0.8666666666666667]
["Sec",5,10,11,12,10,8,null,null,null,null,null,null,null,null,null,null,null,null,null,null,null,null,null,null,null,null,null,null,null,null,null,51,0.68]
["PC",5,10,10,8,8,6,null,null,null,null,null,null,null,null,null,null,null,null,null,null,null,null,null,null,null,null,null,null,null,null,null,42,0.56000000000000005]
["Stew",5,8,8,8,10,8,null,null,null,null,null,null,null,null,null,null,null,null,null,null,null,null,null,null,null,null,null,null,null,null,null,42,0.56000000000000005]
["Kit",5,6,6,6,6,6,null,null,null,null,null,null,null,null,null,null,null,null,null,null,null,null,null,null,null,null,null,null,null,null,null,30,0.4]
["Eng",5,12,12,13,14,15,null,null,null,null,null,null,null,null,null,null,null,null,null,null,null,null,null,null,null,null,null,null,null,null,null,66,0.88]

{"sheet":"Bars","index":4,"n_rows":32,"n_cols":9,"rows_kept":32,"cut":false,"hidden":false,"merged":[]}
["NO","Training Topic موضوع التدريب ","Date التاريخ ","Video Date ","Video Length","Introduction ","Voice Clarity ","Group Video","Total"]
[1,"Preparing Special Beverages Cocktails\n","2021-03-01",{"$f":"IF(('Add sheet'!$C$11-Bars[[#This Row],[Date التاريخ ]])>=5,0,IF(('Add sheet'!$C$11-Bars[[#This Row],[Date التاريخ ]])>=3,3,5))","v":0}]
[2,"Guest service Standards, Stocks Management","2021-03-03",{"$f":"IF(('Add sheet'!$C$11-Bars[[#This Row],[Date التاريخ ]])>=5,0,IF(('Add sheet'!$C$11-Bars[[#This Row],[Date التاريخ ]])>=3,3,5))","v":0}]
[3,"HOW TO HANDLE DIPRASSAGE","2021-03-05",{"$f":"IF(('Add sheet'!$C$11-Bars[[#This Row],[Date التاريخ ]])>=5,0,IF(('Add sheet'!$C$11-Bars[[#This Row],[Date التاريخ ]])>=3,3,5))","v":0}]
[4,"HOW TO OPEN BOTTLE OF WINE ","2021-03-07",{"$f":"IF(('Add sheet'!$C$11-Bars[[#This Row],[Date التاريخ ]])>=5,0,IF(('Add sheet'!$C$11-Bars[[#This Row],[Date التاريخ ]])>=3,3,5))","v":3}]
[5,"HOW TO CHANGE THE ASHTRY ","2021-03-09",{"$f":"IF(('Add sheet'!$C$11-Bars[[#This Row],[Date التاريخ ]])>=5,0,IF(('Add sheet'!$C$11-Bars[[#This Row],[Date التاريخ ]])>=3,3,5))","v":5}]
[6,"HOW TO SERVE BOTTLE OF BEER","2021-03-10",{"$f":"IF(('Add sheet'!$C$11-Bars[[#This Row],[Date التاريخ ]])>=5,0,IF(('Add sheet'!$C$11-Bars[[#This Row],[Date التاريخ ]])>=3,3,5))","v":5}]
[7,"HOW TO OFFER BEVERAGE MENU","2021-03-12",{"$f":"IF(('Add sheet'!$C$11-Bars[[#This Row],[Date التاريخ ]])>=5,0,IF(('Add sheet'!$C$11-Bars[[#This Row],[Date التاريخ ]])>=3,3,5))","v":5}]
[8,"Beer,  Bottled","2021-03-13",{"$f":"IF(('Add sheet'!$C$11-Bars[[#This Row],[Date التاريخ ]])>=5,0,IF(('Add sheet'!$C$11-Bars[[#This Row],[Date التاريخ ]])>=3,3,5))","v":5}]
[9,"Cocktails","2021-03-15",{"$f":"IF(('Add sheet'!$C$11-Bars[[#This Row],[Date التاريخ ]])>=5,0,IF(('Add sheet'!$C$11-Bars[[#This Row],[Date التاريخ ]])>=3,3,5))","v":5}]
[10,"White / Rosé wines by the Bottle","2021-03-17",{"$f":"IF(('Add sheet'!$C$11-Bars[[#This Row],[Date التاريخ ]])>=5,0,IF(('Add sheet'!$C$11-Bars[[#This Row],[Date التاريخ ]])>=3,3,5))","v":5}]
[11,"Covid 19 precautions","2021-03-19",{"$f":"IF(('Add sheet'!$C$11-Bars[[#This Row],[Date التاريخ ]])>=5,0,IF(('Add sheet'!$C$11-Bars[[#This Row],[Date التاريخ ]])>=3,3,5))","v":5}]
[12,"Wine, By The Glass","2021-03-21",{"$f":"IF(('Add sheet'!$C$11-Bars[[#This Row],[Date التاريخ ]])>=5,0,IF(('Add sheet'!$C$11-Bars[[#This Row],[Date التاريخ ]])>=3,3,5))","v":5}]
[13,"Lunch and Dinner buffet","2021-03-23",{"$f":"IF(('Add sheet'!$C$11-Bars[[#This Row],[Date التاريخ ]])>=5,0,IF(('Add sheet'!$C$11-Bars[[#This Row],[Date التاريخ ]])>=3,3,5))","v":5}]
[14,"Room Service","2021-03-25",{"$f":"IF(('Add sheet'!$C$11-Bars[[#This Row],[Date التاريخ ]])>=5,0,IF(('Add sheet'!$C$11-Bars[[#This Row],[Date التاريخ ]])>=3,3,5))","v":5}]
[15,"Defrosting  ","2021-03-27",{"$f":"IF(('Add sheet'!$C$11-Bars[[#This Row],[Date التاريخ ]])>=5,0,IF(('Add sheet'!$C$11-Bars[[#This Row],[Date التاريخ ]])>=3,3,5))","v":5}]
[16,"What to Say?","2021-03-29",{"$f":"IF(('Add sheet'!$C$11-Bars[[#This Row],[Date التاريخ ]])>=5,0,IF(('Add sheet'!$C$11-Bars[[#This Row],[Date التاريخ ]])>=3,3,5))","v":5}]
[17,"Trust You","2021-03-31",{"$f":"IF(('Add sheet'!$C$11-Bars[[#This Row],[Date التاريخ ]])>=5,0,IF(('Add sheet'!$C$11-Bars[[#This Row],[Date التاريخ ]])>=3,3,5))","v":5}]
[18,null,null,{"$f":"IF(('Add sheet'!$C$11-Bars[[#This Row],[Date التاريخ ]])>=5,0,IF(('Add sheet'!$C$11-Bars[[#This Row],[Date التاريخ ]])>=3,3,5))","v":0}]
[19,null,null,{"$f":"IF(('Add sheet'!$C$11-Bars[[#This Row],[Date التاريخ ]])>=5,0,IF(('Add sheet'!$C$11-Bars[[#This Row],[Date التاريخ ]])>=3,3,5))","v":0}]
[20,null,null,{"$f":"IF(('Add sheet'!$C$11-Bars[[#This Row],[Date التاريخ ]])>=5,0,IF(('Add sheet'!$C$11-Bars[[#This Row],[Date التاريخ ]])>=3,3,5))","v":0}]
[21,null,null,{"$f":"IF(('Add sheet'!$C$11-Bars[[#This Row],[Date التاريخ ]])>=5,0,IF(('Add sheet'!$C$11-Bars[[#This Row],[Date التاريخ ]])>=3,3,5))","v":0}]
[22,null,null,{"$f":"IF(('Add sheet'!$C$11-Bars[[#This Row],[Date التاريخ ]])>=5,0,IF(('Add sheet'!$C$11-Bars[[#This Row],[Date التاريخ ]])>=3,3,5))","v":0}]
[23,null,null,{"$f":"IF(('Add sheet'!$C$11-Bars[[#This Row],[Date التاريخ ]])>=5,0,IF(('Add sheet'!$C$11-Bars[[#This Row],[Date التاريخ ]])>=3,3,5))","v":0}]
[24,null,null,{"$f":"IF(('Add sheet'!$C$11-Bars[[#This Row],[Date التاريخ ]])>=5,0,IF(('Add sheet'!$C$11-Bars[[#This Row],[Date التاريخ ]])>=3,3,5))","v":0}]
[25,null,null,{"$f":"IF(('Add sheet'!$C$11-Bars[[#This Row],[Date التاريخ ]])>=5,0,IF(('Add sheet'!$C$11-Bars[[#This Row],[Date التاريخ ]])>=3,3,5))","v":0}]
[26,null,null,{"$f":"IF(('Add sheet'!$C$11-Bars[[#This Row],[Date التاريخ ]])>=5,0,IF(('Add sheet'!$C$11-Bars[[#This Row],[Date التاريخ ]])>=3,3,5))","v":0}]
[27,null,null,{"$f":"IF(('Add sheet'!$C$11-Bars[[#This Row],[Date التاريخ ]])>=5,0,IF(('Add sheet'!$C$11-Bars[[#This Row],[Date التاريخ ]])>=3,3,5))","v":0}]
[28,null,null,{"$f":"IF(('Add sheet'!$C$11-Bars[[#This Row],[Date التاريخ ]])>=5,0,IF(('Add sheet'!$C$11-Bars[[#This Row],[Date التاريخ ]])>=3,3,5))","v":0}]
[29,null,null,{"$f":"IF(('Add sheet'!$C$11-Bars[[#This Row],[Date التاريخ ]])>=5,0,IF(('Add sheet'!$C$11-Bars[[#This Row],[Date التاريخ ]])>=3,3,5))","v":0}]
[30,null,null,{"$f":"IF(('Add sheet'!$C$11-Bars[[#This Row],[Date التاريخ ]])>=5,0,IF(('Add sheet'!$C$11-Bars[[#This Row],[Date التاريخ ]])>=3,3,5))","v":0}]
[31,null,null,{"$f":"IF(('Add sheet'!$C$11-Bars[[#This Row],[Date التاريخ ]])>=5,0,IF(('Add sheet'!$C$11-Bars[[#This Row],[Date التاريخ ]])>=3,3,5))","v":0}]

{"sheet":"Rest","index":5,"n_rows":32,"n_cols":9,"rows_kept":32,"cut":false,"hidden":false,"merged":[]}
["NO","Training Topic موضوع التدريب ","Date التاريخ ","Video Date ","Video Length","Introduction ","Voice Clarity ","Group Video","Total"]
[1,"Kids Buffet Minimum standard Lunch and Dinner POLICY","2021-03-01"]
[2,"Food Display Buffet Presentation","2021-03-03"]
[3,"Bakery Products , Pastry Products,","2021-03-05"]
[4,"Beverage Standards , ","2021-03-07"]
[5,"F&B Opening Check List ","2021-03-09"]
[6,"F&B Closing Check List ","2021-03-10"]
[7,"Covid 19 precautions","2021-03-12"]
[8,"Mineral Water, Non-Carbonated","2021-03-13"]
[9,"Feedback for the food","2021-03-15"]
[10,"Beer,  Bottled","2021-03-17"]
[11,"Lunch and Dinner buffet","2021-03-19"]
[12,"Room Service","2021-03-21"]
[13,"Defrosting  ","2021-03-23"]
[14,"SQS ","2021-03-25"]
[15,"Trust You","2021-03-27"]
[16,"Travelife","2021-03-29"]
[17,"ISO 9001 ","2021-03-31"]
[18]
[19]
[20]
[21]
[22]
[23]
[24]
[25]
[26]
[27]
[28]
[29]
[30]
[31]

{"sheet":"Kit","index":6,"n_rows":32,"n_cols":9,"rows_kept":32,"cut":false,"hidden":false,"merged":[]}
["NO","Training Topic موضوع التدريب ","Date التاريخ ","Video Date ","Video Length","Introduction ","Voice Clarity ","Group Video","Total"]
[1,"Quality of beef","2021-03-01"]
[2,"food teast ","2021-03-02"]
[3,"Theme Night ","2021-03-03"]
[4,"Salmonellaمصادر بكتيريا السالمونيلا:","2021-03-05"]
[5,"ما هي مصادر تلوث   الغذاWhat are the Sources of food","2021-03-06"]
[6,"Sequence of Service - After Seating of Guests 1","2021-03-08"]
[7,"Whish for hand","2021-03-09"]
[8,"A la Cart Restaurant Audit","2021-03-11"]
[9,"Main Restaurant Audit","2021-03-12"]
[10,"Cold Storage   ","2021-03-14"]
[11,"covid 19","2021-03-16"]
[12,"Travelife","2021-03-17"]
[13,"ISO 9001 ","2021-03-18"]
[14,"chicken Salad ","2021-03-20"]
[15,"Black Forest Cake","2021-03-22"]
[16,"Alexandrian Style Liver","2021-03-23"]
[17]
[18]
[19]
[20]
[21]
[22]
[23]
[24]
[25]
[26]
[27]
[28]
[29]
[30]
[31]

{"sheet":"Stw","index":7,"n_rows":32,"n_cols":9,"rows_kept":32,"cut":false,"hidden":false,"merged":[]}
["NO","Training Topic موضوع التدريب ","Date التاريخ ","Video Date ","Video Length","Introduction ","Voice Clarity ","Group Video","Total"]
[1,"مهام مساعد المطبخ ","2021-03-01"]
[2,"كيفية نظافة البارات / ماكينة الجلاس واشر","2021-03-05"]
[3,"الايزو 9001 ","2021-03-07"]
[4,"الأجرائات الأحترازية لكرونا  (- COVID-19 ) ","2021-03-10"]
[5,"تجهيز الكاسرول للعمل /تصنيف العدة بالكاسرول","2021-03-12"]
[6,"السلوك ","2021-03-16"]
[7,"الرسيفنج / نظافة الرسيفنج / نظافة ثلاجة الخضار ","2021-03-18"]
[8,"الاجندة للتشيك على اوردرات الصيانة","2021-03-20"]
[9,"ترافل لايف","2021-03-23"]
[10]
[11]
[12]
[13]
[14]
[15]
[16]
[17]
[18]
[19]
[20]
[21]
[22]
[23]
[24]
[25]
[26]
[27]
[28]
[29]
[30]
[31]

{"sheet":"FO","index":8,"n_rows":32,"n_cols":9,"rows_kept":32,"cut":false,"hidden":false,"merged":[]}
["NO","Training Topic موضوع التدريب ","Date التاريخ ","Video Date ","Video Length","Introduction ","Voice Clarity ","Group Video","Total"]
[1,"Check IN Procedures","01.03.2021"]
[2,"COVID-19 precautions and awareness ","03.03.2021"]
[3,"Escorting","05.03.2021"]
[4,"Expenses fund","08.03.2021"]
[5,"Negative Comments ","10.03.2021"]
[6,"Bucket Check","12.03.2021"]
[7,"ISO 9001","15.03.2021"]
[8,"Travel Life","17.03.2021"]
[9,"Hotel doctor","19.03.2021"]
[10,"Upon Check out","21.03.2021"]
[11,"Booking.Com FU & Cycle","23.03.2021"]
[12]
[13]
[14]
[15]
[16]
[17]
[18]
[19]
[20]
[21]
[22]
[23]
[24]
[25]
[26]
[27]
[28]
[29]
[30]
[31]

{"sheet":"HK","index":9,"n_rows":32,"n_cols":9,"rows_kept":32,"cut":false,"hidden":false,"merged":[]}
["NO","Training Topic موضوع التدريب ","Date التاريخ ","Video Date ","Video Length","Introduction ","Voice Clarity ","Group Video","Total"]
[1,"Position Cart","01/03/020"]
[2,"ISO 9001 ","02/03/020"]
[3,"Check Trolley & Equipment","03/03/020"]
[4,"Guest Room Cleaning Frequency Schedule","04/03/020"]
[5,"Facilities of greater risk of  dispersion of Legionella ","05/03/020"]
[6,"Sexual Harassment ","06/03/020"]
[7,"Assignment Sheet","07/03/020"]
[8,"CLEANING&HOUSEKEEPING PROTOCOLS","08/03/020"]
[9,"Guest Room Daily Service","09/03/020"]
[10,"Check for Room Maintenance","10/03/020"]
[11,"Guest Room Evening Service","11/03/020"]
[12,"check all maintanance order","12/03/020"]
[13,"Refill all guest supplies & coffe set up","13/03/020"]
[14,"Cleaning shower area & drain","14/03/020"]
[15,"cleaning the floor & corner","15/03/020"]
[16,"house man trolly setup","16/03/020"]
[17,"Personal protective Equaipement regarding to CPVID-19","17/03/020"]
[18,"COVID -19 spread & Preventive procedures ","18/03/020"]
[19,"Disinfection against COVID-19","19/03/020"]
[20]
[21]
[22]
[23]
[24]
[25]
[26]
[27]
[28]
[29]
[30]
[31]

{"sheet":"PC","index":10,"n_rows":32,"n_cols":9,"rows_kept":32,"cut":false,"hidden":false,"merged":[]}
["NO","Training Topic موضوع التدريب ","Date التاريخ ","Video Date ","Video Length","Introduction ","Voice Clarity ","Group Video","Total"]
[1,"نبذه عن حشره البق و طرق مكافحتها","2021-03-01"]
[2,"كيفيه التعامل مع الغرف المصابه بحشره البق","2021-03-03"]
[3,"الإجراءات الإحترازيه لفيروس كورونا","2021-03-05"]
[4,"حشره الناموس و طرق مكافحتها","2021-03-07"]
[5,"Travelife","2021-03-09"]
[6,"التحرش الجنسي","2021-03-10"]
[7,"كيفيه رش الاريات ضد الحشرات الطائره و الزاحفه","2021-03-12"]
[8,"نبذه عن القوارض","2021-03-13"]
[9,"طرق مكافحه القوارض","2021-03-14"]
[10,"الرشه المركزه لغرف النزلاء","2021-03-15"]
[11,"كيفيه رش سكن العاملين","2021-03-18"]
[12,"الأخطاء الشائعه في القسم","2021-03-20"]
[13,"إحتياطات الأمن و السلامه لفني مكافحه الأفات ","2021-03-21"]
[14,"كيفيه تحضير الرشاشه","2021-03-22"]
[15,"كيفيه تحضير جهاز ULV","2021-03-23"]
[16]
[17]
[18]
[19]
[20]
[21]
[22]
[23]
[24]
[25]
[26]
[27]
[28]
[29]
[30]
[31]

{"sheet":"Lau","index":11,"n_rows":32,"n_cols":9,"rows_kept":32,"cut":false,"hidden":false,"merged":[]}
["NO","Training Topic موضوع التدريب ","Date التاريخ ","Video Date ","Video Length","Introduction ","Voice Clarity ","Group Video","Total"]
[1,"linen sorting","2021-03-01"]
[2,"Saving cost","2021-03-03"]
[3,"Staff appearance and precautions COVID -19 (كيقية انتشار فيروس كورونا)","2021-03-05"]
[4,"Uniform washing program","2021-03-07"]
[5,"Washer job description","2021-03-09"]
[6,"The hardness of water","2021-03-11"]
[7,"Travelife  and precautions COVID -19 (اعراض الاصابه  بالقيروس )","2021-03-13"]
[8,"Valet job description","2021-03-15"]
[9,"Worker job description and precautions COVID - 19\n ( الابلاغ في حالة الاشتباه ) ","2021-03-17"]
[10,"Washer job description","2021-03-19"]
[11,"How to use the wax in the flat iron","2021-03-20"]
[12,"ISO 9001  and precautions COVID -19 (استخدام مهمات الوقابة ضد \n  (فيروس كورونا بالطريقه الصحيحة ","2021-03-22"]
[13,"How to deal with chemicals","2021-03-24"]
[14," how to deal with lost and found","2021-03-26"]
[15,"Sexual Harassment     and precautions COVID -19\n (كيفية الالتزام بالتباعد الاجتماعي )","2021-03-28"]
[16,"Safety precautions while sorting laundry","2021-03-30"]
[17]
[18]
[19]
[20]
[21]
[22]
[23]
[24]
[25]
[26]
[27]
[28]
[29]
[30]
[31]

{"sheet":"Rec","index":12,"n_rows":32,"n_cols":9,"rows_kept":32,"cut":false,"hidden":false,"merged":[]}
["NO","Training Topic موضوع التدريب ","Date التاريخ ","Video Date ","Video Length","Introduction ","Voice Clarity ","Group Video","Total"]
[1,"When The Guest Satisfid please Say ","2021-03-01"]
[2,"ISO 9001 ","2021-03-04"]
[3,"Life Guard Training","2021-03-07"]
[4,"Sexual Harassment ","2021-03-12"]
[5,"How does the Corona virus spread","2021-03-07"]
[6,"Say & Don’t Say ","2021-03-10"]
[7," Life Guard Training","2021-03-14"]
[8,"Children Protection Policy ","2021-03-16"]
[9,"PREVENTION OF CORONAVIRUS","2021-03-18"]
[10,"Life Guard Training","2021-03-21"]
[11,"Environmental Policy ","2021-03-23"]
[12,"When The Guest Satisfid please Say ","2021-03-25"]
[13,"Life Guard Training","2021-03-28"]
[14,"Use the tasks of prevention against Corona virus in the right way","2021-03-31"]
[15]
[16]
[17]
[18]
[19]
[20]
[21]
[22]
[23]
[24]
[25]
[26]
[27]
[28]
[29]
[30]
[31]

{"sheet":"Eng","index":13,"n_rows":32,"n_cols":9,"rows_kept":32,"cut":false,"hidden":false,"merged":[]}
["NO","Training Topic موضوع التدريب ","Date التاريخ ","Video Date ","Video Length","Introduction ","Voice Clarity ","Group Video","Total"]
[1,"المشترى الغامض ( mystery shopper )","2021-03-01"]
[2,"covid 19 اتباع السلامة ل ","2021-03-02"]
[3,"معالجة المياة وحمامات السباحة ","2021-03-03"]
[4,"محطة المياة الرئيسية ( البوستر ) واهميتة ","2021-03-04"]
[5,"معايير الاضاءة","2021-03-05"]
[6,"نبذة عن قسم الترميم من رئيس القسم","2021-03-06"]
[7,"معالجة محطة المعالجة","2021-03-07"]
[8,"برنامج الصيانة الوقائية","2021-03-08"]
[9,"المبادئ فى تنفيذ برنامج الصيانة الوقائية","2021-03-09"]
[10,"covid 19   ","2021-03-10"]
[11,"Travelife","2021-03-11"]
[12,"ISO 9001 ","2021-03-12"]
[13,"الاستهلاكات ومتابعة عملية التوفير","2021-03-13"]
[14,"نبذة عن  قسم الدهانات من رئيس القسم","2021-03-14"]
[15,"تدوير المخلفات","2021-03-15"]
[16,"محطة التحلية","2021-03-16"]
[17,"الكونتاكتور والأوفرلود والهيترات ","2021-03-17"]
[18,"المبادل الحرارى","2021-03-18"]
[19,"تفتيش كريستال","2021-03-19"]
[20,"covid 19  اعمال الاوردرات داخل الغرف فى ظل","2021-03-20"]
[21,"التبريد والتكييف","2021-03-21"]
[22,"معالجة نافورة المياة والطرق المتبعة","2021-03-22"]
[23,"الليجينولا قسم السباكة (غرف النزلاء)","2021-03-23"]
[24,"الاجراءات اليومية لصيانة الغرف","2021-03-24"]
[25,"مخاطر الليجينولا ","2021-03-25"]
[26,"التحرش الجنسى ","2021-03-26"]
[27,"كيفية تفادى مخاطر المعدات ","2021-03-27"]
[28,"طرق تعقيم سماعة الشاور","2021-03-28"]
[29]
[30]
[31]

{"sheet":"Sec","index":14,"n_rows":32,"n_cols":9,"rows_kept":32,"cut":false,"hidden":false,"merged":[]}
["NO","Training Topic موضوع التدريب ","Date التاريخ ","Video Date ","Video Length","Introduction ","Voice Clarity ","Group Video","Total"]
[1,"شرح كيفيه التعامل في حاله هجوم مسلح","2021-03-02"]
[2,"سياسه الهيكل الاداري ","2021-03-03"]
[3,"طرق التشويش علي الكاميرات","2021-03-04"]
[4,"اداره الازمات","2021-03-05"]
[5,"مهام فريق الطوارئ","2021-03-06"]
[6,"كبفيه التعامل في حاله وجود اصابه","2021-03-07"]
[7,"الترافلايف","2021-03-09"]
[8,"كيفيه التعامل في حاله الوفاه","2021-03-10"]
[9,"كيفيع الوقايه من فيرس كورونا","2021-03-11"]
[10,"كيفيه التعامل مع السرقات المزعومه","2021-03-12"]
[11,"كيفية التعامل فى حالات الكوارث الطبيعيه","2021-03-13"]
[12,"تجديد رخصه الفندق","2021-03-14"]
[13,"التحرش الجنسى","2021-03-16"]
[14,"اهميه النظافه الشخصيه للوقايه من فيرس كورونا","2021-03-17"]
[15,"سياسه التقلرير الامنيه","2021-03-18"]
[16,"اجراءات التفتيش واسلوب التعامل","2021-03-19"]
[17,"كيفيه التعامل مع البائعين والمستاجرين بالفندق","2021-03-20"]
[18,"شرح طرق التفتيش علي المداخل","2021-03-21"]
[19,"اجراءات تشغيل نظام الدوائر التليفزيونيه ","2021-03-23"]
[20,"كيفيه التشيك على الفندق بالكامل ","2021-03-24"]
[21,"تقييم المخاطر والتهديدات","2021-03-25"]
[22,"اهميه التواصل داخل العمل ","2021-03-26"]
[23,"سياسه امن المعلومات","2021-03-27"]
[24,"المشترى الغامض","2021-03-28"]
[25,"اهميه ارتداء مهام الوقايه بالفندق","2021-03-30"]
[26,"الاسعافات الاولية","2021-03-31"]
[27]
[28]
[29]
[30]
[31]